bitfinex/quotes_BTCUSD_20241103
["timestamp","ask_amount","ask_price","bid_price","bid_amount"]
[1730646698557,0.147643,67731.0,67721.0,0.147664]
[1730646698781,0.147643,67731.0,67720.0,0.000816]
[1730646698782,0.147643,67731.0,67724.0,0.147657]
[1730646699882,0.147639,67733.0,67725.0,0.147654]
[1730646700092,0.001,67731.0,67725.0,0.147654]
[1730646700526,0.147642,67732.0,67725.0,0.147654]
[1730646700768,0.22659028,67745.0,67726.0,0.14874998]
[1730646700993,0.002,67731.0,67730.0,0.147645]
[1730646701251,0.002,67731.0,67730.0,0.29344204]
[1730646702176,0.0822,67740.0,67738.0,0.147627]
[1730646702394,0.03217423,67739.0,67738.0,0.147627]
[1730646702612,0.03217423,67739.0,67736.0,0.147631]
[1730646702823,0.03217423,67739.0,67737.0,0.147627]
[1730646703272,0.001632,67739.0,67738.0,0.147627]
[1730646703537,0.001632,67739.0,67738.0,0.001]
[1730646703772,0.149257,67739.0,67730.0,0.011]
[1730646704010,0.149257,67739.0,67735.0,0.147632]
[1730646704011,0.001632,67739.0,67735.0,0.147632]
[1730646704238,0.003632,67739.0,67727.0,0.1]
[1730646704467,0.003632,67739.0,67738.0,0.147627]
[1730646704688,0.003632,67739.0,67738.0,0.29442404]
[1730646705333,0.001632,67739.0,67738.0,0.29442404]
[1730646706178,0.001632,67739.0,67738.0,0.39942404]
[1730646706533,0.001632,67739.0,67738.0,0.41242404]
[1730646707003,0.001632,67739.0,67738.0,0.39842404]
[1730646707183,0.001632,67739.0,67738.0,0.40042404]
[1730646707483,0.001632,67739.0,67738.0,0.42842404]
[1730646707646,0.001632,67739.0,67738.0,0.41442404]
[1730646708026,0.001632,67739.0,67738.0,0.42642404]
[1730646708789,0.001632,67739.0,67738.0,0.41242404]
[1730646708945,0.001632,67739.0,67738.0,0.42642404]
[1730646709380,0.001632,67739.0,67738.0,0.41242404]
[1730646709599,0.001632,67739.0,67738.0,0.39842404]
[1730646709756,0.001632,67739.0,67738.0,0.42642404]
[1730646710187,0.001632,67739.0,67738.0,0.41242404]
[1730646710425,0.001632,67739.0,67738.0,0.40742404]
[1730646710734,0.001632,67739.0,67738.0,0.40642404]
[1730646710867,0.001632,67739.0,67738.0,0.160627]
[1730646711079,0.001632,67739.0,67738.0,0.171627]
[1730646711273,0.001632,67739.0,67738.0,0.160627]
[1730646711479,0.001632,67739.0,67738.0,0.013]
[1730646711693,0.231757,67739.0,67738.0,0.013]
[1730646711904,0.295272,67734.0,67710.0,0.22159028]
[1730646712247,0.0775,67723.0,67714.0,0.295359]
[1730646712483,0.0775,67723.0,67712.0,0.295366]
[1730646712689,0.295368,67712.0,67700.0,0.00297666]
[1730646712896,0.3064776,67711.0,67700.0,0.29839566]
[1730646713093,0.0111056,67710.0,67700.0,0.15068466]
[1730646713338,0.147694,67708.0,67697.0,0.295433]
[1730646713546,0.0775,67713.0,67697.0,0.147715]
[1730646713720,0.295378,67710.0,67697.0,0.147715]
[1730646713922,0.147698,67706.0,67697.0,0.147715]
[1730646714086,0.002,67712.0,67692.0,0.1]
[1730646714290,0.0476,67701.0,67694.0,0.147721]
[1730646714914,0.0476,67701.0,67692.0,0.247726]
[1730646715240,0.14771,67700.0,67688.0,0.295472]
[1730646715454,0.0476,67701.0,67695.0,0.14772]
[1730646715667,0.0476,67701.0,67699.0,0.001835]
[1730646716278,0.0476,67701.0,67699.0,0.148546]
[1730646716477,0.003,67700.0,67699.0,0.000835]
[1730646716892,0.0476,67701.0,67699.0,0.000835]
[1730646717133,0.005,67711.0,67699.0,0.00378917]
[1730646717339,0.005,67711.0,67700.0,0.44608389]
[1730646717340,0.001,67701.0,67700.0,0.44608389]
[1730646717491,0.01608174,67709.0,67703.0,0.147702]
[1730646717692,0.00908388,67709.0,67703.0,0.147702]
[1730646717907,0.01408388,67709.0,67703.0,0.147702]
[1730646718301,0.01408388,67709.0,67699.0,0.000835]
[1730646718504,0.0796975,67709.0,67700.0,0.29542]
[1730646718729,0.07061362,67709.0,67702.0,0.147705]
[1730646719253,0.07061362,67709.0,67700.0,0.29542]
[1730646719254,0.003,67711.0,67703.0,0.00295389]
[1730646719472,0.003,67711.0,67699.0,0.22342528]
[1730646719473,0.29909028,67713.0,67699.0,0.000835]
[1730646719674,0.29909028,67713.0,67707.0,0.147694]
[1730646719813,0.003,67709.0,67707.0,0.147694]
[1730646720378,0.147691,67709.0,67700.0,0.29350604]
[1730646720585,0.147691,67709.0,67703.0,0.001]
[1730646720586,0.001,67709.0,67703.0,0.001]
[1730646720963,0.44977328,67713.0,67704.0,0.147701]
[1730646721139,0.001,67709.0,67704.0,0.147701]
[1730646721404,0.001,67709.0,67702.0,0.295412]
[1730646721548,0.25699213,67712.0,67704.0,0.147701]
[1730646721942,0.001,67709.0,67702.0,0.295412]
[1730646722253,0.0775,67713.0,67703.0,0.14875081]
[1730646722398,0.001,67709.0,67708.0,0.147693]
[1730646722654,0.001,67709.0,67708.0,0.29349004]
[1730646722851,0.22159028,67721.0,67720.0,0.147666]
[1730646723023,0.22159028,67721.0,67708.0,0.14579704]
[1730646723386,0.227663,67722.0,67702.0,0.002]
[1730646723387,0.08,67722.0,67721.0,0.147664]
[1730646723626,0.295274,67734.0,67722.0,0.295324]
[1730646723627,0.08,67732.0,67722.0,0.295324]
[1730646723839,0.08,67732.0,67722.0,0.442986]
[1730646723840,0.22159028,67723.0,67722.0,0.442986]
[1730646724074,0.08,67732.0,67711.0,0.295372]
[1730646724317,0.08,67732.0,67712.0,0.37034035]
[1730646724584,0.08,67732.0,67724.0,0.147657]
[1730646724585,0.147644,67731.0,67724.0,0.147657]
[1730646724848,0.22159028,67726.0,67722.0,0.001]
[1730646725069,0.147644,67731.0,67722.0,0.295323]
[1730646725294,0.29236733,67732.0,67722.0,0.295323]
[1730646725568,0.081,67732.0,67723.0,0.00227645]
[1730646725791,0.08,67732.0,67731.0,0.147642]
[1730646726014,0.001632,67739.0,67738.0,0.147627]
[1730646726446,0.001632,67739.0,67738.0,0.29637637]
[1730646726654,0.001632,67739.0,67738.0,0.29842404]
[1730646726858,0.001632,67739.0,67738.0,0.39842404]
[1730646728205,0.001632,67739.0,67738.0,0.39342404]
[1730646728653,0.001632,67739.0,67738.0,0.40742404]
[1730646728893,0.001632,67739.0,67738.0,0.32142404]
[1730646729104,0.001632,67739.0,67738.0,0.175627]
[1730646729363,0.001632,67739.0,67738.0,0.147627]
[1730646729697,0.001632,67739.0,67713.0,0.22659028]
[1730646729698,0.1254,67738.0,67713.0,0.22659028]
[1730646729922,0.1254,67738.0,67733.0,0.295274]
[1730646730089,0.22159028,67736.0,67718.0,0.005]
[1730646730241,0.22159028,67736.0,67729.0,0.147645]
[1730646730445,0.22159028,67736.0,67729.0,0.295293]
[1730646730653,0.22159028,67736.0,67722.0,0.295325]
[1730646730837,0.04962473,67735.0,67729.0,0.295291]
[1730646731034,0.22159028,67736.0,67731.0,0.147641]
[1730646731291,0.22159028,67736.0,67733.0,0.147637]
[1730646731492,0.22259028,67736.0,67733.0,0.147637]
[1730646731724,0.22259028,67736.0,67728.0,0.295295]
[1730646731725,0.001,67736.0,67728.0,0.295295]
[1730646731929,0.08,67738.0,67737.0,0.147629]
[1730646732058,0.001632,67739.0,67738.0,0.147627]
[1730646732262,0.001632,67739.0,67738.0,0.29342404]
[1730646733508,0.001632,67739.0,67738.0,0.30242404]
[1730646734269,0.002632,67739.0,67738.0,0.30342404]
[1730646734668,0.001632,67739.0,67738.0,0.29342404]
[1730646735136,0.001632,67739.0,67738.0,0.30742404]
[1730646735641,0.001632,67739.0,67738.0,0.29942404]
[1730646735943,0.001632,67739.0,67738.0,0.30842404]
[1730646737903,0.001632,67739.0,67738.0,0.40842404]
[1730646738259,0.001632,67739.0,67738.0,0.157627]
[1730646738260,0.050232,67739.0,67738.0,0.157627]
[1730646738461,0.43335404,67739.0,67738.0,0.015]
[1730646738660,0.01,67732.0,67713.0,0.22159028]
[1730646738988,0.147658,67724.0,67723.0,0.22159028]
[1730646739173,0.147663,67722.0,67713.0,0.36927128]
[1730646739341,0.44108204,67731.0,67714.0,0.147679]
[1730646739342,0.147662,67723.0,67714.0,0.147679]
[1730646739547,0.22159028,67730.0,67715.0,0.147676]
[1730646739742,0.06726723,67729.0,67716.0,0.147673]
[1730646740081,0.06726723,67729.0,67713.0,0.14768]
[1730646740283,0.147661,67723.0,67713.0,0.147681]
[1730646740512,0.295303,67727.0,67716.0,0.147673]
[1730646740674,0.147659,67724.0,67715.0,0.147675]
[1730646740876,0.0442957,67723.0,67713.0,0.011]
[1730646741094,0.300283,67732.0,67714.0,0.00295339]
[1730646741325,0.22659028,67738.0,67715.0,0.14579704]
[1730646741326,0.22159028,67729.0,67715.0,0.14579704]
[1730646741535,0.22159028,67728.0,67716.0,0.107]
[1730646741754,0.22159028,67728.0,67727.0,0.147651]
[1730646742200,0.22159028,67738.0,67728.0,0.147649]
[1730646742417,0.22159028,67738.0,67729.0,0.00295274]
[1730646742678,0.22159028,67738.0,67737.0,0.147629]
[1730646743117,0.001632,67739.0,67738.0,0.147627]
[1730646743343,0.001632,67739.0,67738.0,0.29637649]
[1730646743557,0.001632,67739.0,67738.0,0.29342404]
[1730646743761,0.001632,67739.0,67738.0,0.39342404]
[1730646744868,0.001632,67739.0,67738.0,0.39842404]
[1730646745077,0.001632,67739.0,67738.0,0.247627]
[1730646745452,0.001632,67739.0,67738.0,0.261627]
[1730646745453,0.002632,67739.0,67738.0,0.261627]
[1730646745790,0.002632,67739.0,67738.0,0.258627]
[1730646746218,0.003632,67739.0,67738.0,0.270627]
[1730646746664,0.003632,67739.0,67738.0,0.247627]
[1730646746665,0.001632,67739.0,67738.0,0.247627]
[1730646747060,0.001632,67739.0,67738.0,0.252627]
[1730646747774,0.001632,67739.0,67738.0,0.262627]
[1730646748290,0.001632,67739.0,67738.0,0.018]
[1730646748439,0.001632,67739.0,67738.0,0.013]
[1730646748637,0.001632,67739.0,67738.0,0.006]
[1730646749208,0.001632,67739.0,67733.0,0.295277]
[1730646749612,0.001632,67739.0,67738.0,0.001]
[1730646750065,0.001632,67739.0,67735.0,0.147633]
[1730646750257,0.0165572,67739.0,67735.0,0.147633]
[1730646750489,0.0165572,67739.0,67736.0,0.147631]
[1730646750629,0.0165572,67739.0,67738.0,0.005]
[1730646750630,0.001632,67739.0,67738.0,0.005]
[1730646750829,0.001632,67739.0,67734.0,0.147634]
[1730646751041,0.001632,67739.0,67733.0,0.296277]
[1730646751255,0.002632,67739.0,67736.0,0.147629]
[1730646751536,0.001632,67739.0,67736.0,0.147629]
[1730646751690,0.001632,67739.0,67737.0,0.147629]
[1730646751888,0.002632,67739.0,67738.0,0.001]
[1730646752101,0.001632,67739.0,67738.0,0.148627]
[1730646752295,0.001632,67739.0,67738.0,0.147627]
[1730646752528,0.002632,67739.0,67738.0,0.147627]
[1730646753647,0.002632,67739.0,67738.0,0.001]
[1730646754316,0.002632,67739.0,67738.0,0.148627]
[1730646754514,0.001632,67739.0,67738.0,0.148627]
[1730646754659,0.002632,67739.0,67738.0,0.148627]
[1730646754867,0.002632,67739.0,67738.0,0.40137636]
[1730646755114,0.002632,67739.0,67738.0,0.39942404]
[1730646755568,0.002632,67739.0,67738.0,0.39842404]
[1730646755957,0.001632,67739.0,67738.0,0.41242404]
[1730646756408,0.001632,67739.0,67738.0,0.42898201]
[1730646756767,0.001632,67739.0,67738.0,0.41498201]
[1730646757649,0.001632,67739.0,67738.0,0.40579801]
[1730646757894,0.001632,67739.0,67738.0,0.41979801]
[1730646758302,0.001632,67739.0,67738.0,0.40579801]
[1730646758571,0.001632,67739.0,67738.0,0.40379801]
[1730646758775,0.001632,67739.0,67738.0,0.41779801]
[1730646758944,0.001632,67739.0,67738.0,0.43179801]
[1730646759371,0.001632,67739.0,67738.0,0.41779801]
[1730646759824,0.001632,67739.0,67738.0,0.43179801]
[1730646761896,0.001632,67739.0,67738.0,0.43379801]
[1730646762955,0.001632,67739.0,67738.0,0.43179801]
[1730646764131,0.001632,67739.0,67738.0,0.18100097]
[1730646764349,0.149257,67739.0,67738.0,0.028816]
[1730646764563,0.23823172,67739.0,67738.0,0.028816]
[1730646764759,0.459822,67739.0,67738.0,0.028816]
[1730646764935,0.23823172,67739.0,67738.0,0.028816]
[1730646765157,0.23823172,67739.0,67738.0,0.014816]
[1730646765383,0.23823172,67739.0,67738.0,0.000816]
[1730646765596,0.63461904,67739.0,67738.0,0.000816]
[1730646765840,0.147659,67724.0,67714.0,0.22159028]
[1730646766056,0.1624259,67723.0,67722.0,0.22159028]
[1730646766279,0.147658,67724.0,67713.0,0.14768]
[1730646766474,0.442947,67728.0,67714.0,0.147679]
[1730646766773,0.22159028,67726.0,67713.0,0.14579704]
[1730646766951,0.295311,67725.0,67713.0,0.147681]
[1730646767159,0.295303,67727.0,67715.0,0.147677]
[1730646767359,0.36924528,67726.0,67715.0,0.147677]
[1730646767734,0.39552063,67726.0,67715.0,0.147677]
[1730646767936,0.39552063,67726.0,67713.0,0.007]
[1730646767937,0.147659,67724.0,67713.0,0.007]
[1730646768163,0.24786563,67726.0,67713.0,0.007]
[1730646768348,0.14766,67723.0,67712.0,0.147684]
[1730646768600,0.147664,67722.0,67711.0,0.147685]
[1730646768816,0.10349606,67721.0,67705.0,0.295398]
[1730646769027,0.295333,67720.0,67701.0,0.395413]
[1730646769230,0.14767,67719.0,67713.0,0.002]
[1730646769443,0.14767,67719.0,67713.0,0.002816]
[1730646769444,0.08428231,67718.0,67713.0,0.002816]
[1730646770639,0.23395331,67718.0,67713.0,0.000816]
[1730646770837,0.08628231,67718.0,67713.0,0.000816]
[1730646771297,0.22159028,67714.0,67713.0,0.000816]
[1730646771497,0.152701,67704.0,67699.0,0.000835]
[1730646771747,0.1684711,67704.0,67699.0,0.000835]
[1730646773603,0.1734711,67704.0,67703.0,0.001817]
[1730646774263,0.1734711,67704.0,67703.0,0.000817]
[1730646774704,0.1784711,67704.0,67703.0,0.001817]
[1730646774922,0.17952758,67704.0,67703.0,0.000817]
[1730646775360,0.1824711,67704.0,67703.0,0.002817]
[1730646775813,0.1734711,67704.0,67703.0,0.001817]
[1730646776255,0.147718,67697.0,67684.0,0.147744]
[1730646776471,0.06954604,67703.0,67687.0,0.22159028]
[1730646776697,0.147718,67697.0,67685.0,0.14579704]
[1730646776920,0.147713,67699.0,67687.0,0.147737]
[1730646777617,0.22159028,67700.0,67685.0,0.44127904]
[1730646777835,0.22159028,67700.0,67689.0,0.147732]
[1730646778170,0.36930028,67700.0,67688.0,0.147735]
[1730646778358,0.04591031,67699.0,67688.0,0.147735]
[1730646778555,0.002,67697.0,67688.0,0.147735]
[1730646778775,0.002,67697.0,67685.0,0.14579704]
[1730646778970,0.22392,67696.0,67685.0,0.14579704]
[1730646779193,0.22159028,67693.0,67683.0,0.1]
[1730646779360,0.04455133,67692.0,67683.0,0.247746]
[1730646779577,0.04455133,67692.0,67683.0,0.1]
[1730646779997,0.04455133,67692.0,67685.0,0.147742]
[1730646780220,0.04455133,67692.0,67689.0,0.001]
[1730646780439,0.126,67696.0,67678.0,0.296351]
[1730646780440,0.126,67696.0,67685.0,0.295486]
[1730646780669,0.001,67696.0,67695.0,0.147721]
[1730646780934,0.001,67696.0,67695.0,0.39551804]
[1730646781153,0.001,67696.0,67695.0,0.39851804]
[1730646781380,0.22159028,67707.0,67706.0,0.147697]
[1730646781593,0.22159028,67707.0,67706.0,0.29349404]
[1730646781797,0.26799028,67719.0,67706.0,0.29349404]
[1730646781798,0.22159028,67719.0,67718.0,0.147671]
[1730646782244,0.0464,67731.0,67718.0,0.147671]
[1730646782245,0.22159028,67731.0,67718.0,0.14579704]
[1730646782492,0.22159028,67724.0,67723.0,0.14766]
[1730646782849,0.22159028,67731.0,67730.0,0.147645]
[1730646783454,0.089832,67739.0,67728.0,0.295298]
[1730646783455,0.084832,67739.0,67728.0,0.295298]
[1730646783670,0.084832,67739.0,67729.0,0.14579704]
[1730646783873,0.084832,67739.0,67733.0,0.147637]
[1730646784079,0.084832,67739.0,67730.0,0.29529]
[1730646784283,0.03114223,67737.0,67729.0,0.29344204]
[1730646784487,0.03114223,67737.0,67728.0,0.295298]
[1730646784488,0.03114223,67737.0,67730.0,0.001]
[1730646784707,0.232458,67739.0,67735.0,0.147633]
[1730646784708,0.084832,67739.0,67735.0,0.147633]
[1730646784916,0.22159028,67738.0,67731.0,0.295285]
[1730646785120,0.084832,67739.0,67733.0,0.147636]
[1730646785326,0.084832,67739.0,67726.0,0.295304]
[1730646785327,0.084832,67739.0,67730.0,0.147645]
[1730646785532,0.084832,67739.0,67733.0,0.001]
[1730646785733,0.004,67738.0,67734.0,0.147634]
[1730646785950,0.004,67738.0,67733.0,0.001]
[1730646786365,0.004,67738.0,67735.0,0.147633]
[1730646786563,0.004,67738.0,67733.0,0.001]
[1730646786790,0.0182232,67738.0,67735.0,0.147633]
[1730646787004,0.0142232,67738.0,67735.0,0.147633]
[1730646787435,0.0172232,67738.0,67735.0,0.147633]
[1730646787641,0.0172232,67738.0,67730.0,0.29529]
[1730646787642,0.003,67738.0,67730.0,0.29529]
[1730646787838,0.005,67738.0,67734.0,0.147636]
[1730646788263,0.084832,67739.0,67733.0,0.295277]
[1730646788486,0.001,67738.0,67733.0,0.295277]
[1730646788688,0.001,67738.0,67735.0,0.147633]
[1730646788890,0.084832,67739.0,67736.0,0.14763]
[1730646789111,0.002,67738.0,67736.0,0.14763]
[1730646789347,0.002,67738.0,67733.0,0.147637]
[1730646789598,0.23027348,67737.0,67723.0,0.295316]
[1730646789826,0.002,67738.0,67724.0,0.36738732]
[1730646790052,0.22159028,67737.0,67734.0,0.147634]
[1730646790470,0.084832,67739.0,67732.0,0.442917]
[1730646790724,0.002,67738.0,67732.0,0.14579704]
[1730646791027,0.002,67738.0,67730.0,0.22159028]
[1730646791028,0.002,67738.0,67737.0,0.147629]
[1730646791261,0.002632,67739.0,67738.0,0.147627]
[1730646791488,0.001632,67739.0,67738.0,0.29637627]
[1730646791694,0.001632,67739.0,67738.0,0.29342404]
[1730646792742,0.001632,67739.0,67738.0,0.30142404]
[1730646792743,0.002632,67739.0,67738.0,0.30142404]
[1730646794012,0.002632,67739.0,67738.0,0.30642404]
[1730646794890,0.002632,67739.0,67738.0,0.40642404]
[1730646795303,0.002632,67739.0,67738.0,0.40842404]
[1730646795518,0.001632,67739.0,67738.0,0.40042404]
[1730646795739,0.001632,67739.0,67738.0,0.47732404]
[1730646795942,0.002632,67739.0,67738.0,0.48532404]
[1730646796564,0.002632,67739.0,67738.0,0.48032404]
[1730646796768,0.002632,67739.0,67738.0,0.49432404]
[1730646797084,0.002632,67739.0,67738.0,0.48032404]
[1730646797310,0.002632,67739.0,67738.0,0.47232404]
[1730646797311,0.001632,67739.0,67738.0,0.47232404]
[1730646797516,0.001632,67739.0,67738.0,0.50032404]
[1730646797721,0.001632,67739.0,67738.0,0.48632404]
[1730646797929,0.001632,67739.0,67738.0,0.47232404]
[1730646798125,0.001632,67739.0,67738.0,0.48632404]
[1730646798787,0.22159028,67756.0,67755.0,0.14759]
[1730646798996,0.22159028,67756.0,67755.0,0.29338704]
[1730646799398,0.22159028,67764.0,67763.0,0.147573]
[1730646800126,0.0832,67771.0,67755.0,0.14579704]
[1730646800327,0.0832,67771.0,67769.0,0.14756]
[1730646800748,0.001634,67776.0,67769.0,0.29335704]
[1730646801589,0.001634,67776.0,67769.0,0.29798519]
[1730646802207,0.001634,67776.0,67769.0,0.30398519]
[1730646802758,0.001634,67776.0,67769.0,0.29335704]
[1730646802961,0.001634,67776.0,67769.0,0.14756]
[1730646803140,0.001634,67776.0,67769.0,0.15156]
[1730646803530,0.001634,67776.0,67769.0,0.14756]
[1730646803750,0.001634,67776.0,67769.0,0.16156]
[1730646803935,0.001634,67776.0,67769.0,0.17056]
[1730646804652,0.001634,67776.0,67769.0,0.16156]
[1730646804891,0.001634,67776.0,67756.0,0.1]
[1730646804892,0.048,67769.0,67767.0,0.147564]
[1730646805093,0.048,67769.0,67750.0,0.005]
[1730646805296,0.048,67769.0,67767.0,0.147563]
[1730646805419,0.22159028,67768.0,67762.0,0.147574]
[1730646805620,0.048,67769.0,67760.0,0.147577]
[1730646805866,0.048,67769.0,67752.0,0.295194]
[1730646806087,0.048,67769.0,67760.0,0.295159]
[1730646806307,0.24994305,67768.0,67761.0,0.147575]
[1730646806439,0.24994305,67768.0,67753.0,0.14579704]
[1730646806440,0.048,67769.0,67764.0,0.29514]
[1730646806642,0.048,67769.0,67766.0,0.147565]
[1730646807067,0.048,67769.0,67764.0,0.29514]
[1730646807068,0.048,67769.0,67757.0,0.29517]
[1730646807270,0.048,67769.0,67760.0,0.01]
[1730646807271,0.22159028,67768.0,67760.0,0.01]
[1730646807496,0.22159028,67768.0,67742.0,0.52182628]
[1730646807497,0.28685748,67767.0,67753.0,0.295186]
[1730646807691,0.0652672,67767.0,67753.0,0.44098304]
[1730646807893,0.147566,67766.0,67760.0,0.012]
[1730646808545,0.048,67769.0,67753.0,0.14579704]
[1730646808729,0.147565,67767.0,67754.0,0.295185]
[1730646808931,0.0800241,67766.0,67758.0,0.147582]
[1730646809450,0.0800241,67766.0,67757.0,0.295172]
[1730646809587,0.001,67766.0,67759.0,0.147581]
[1730646810208,0.002,67766.0,67753.0,0.14579704]
[1730646810402,0.001,67766.0,67759.0,0.295162]
[1730646810806,0.001,67766.0,67763.0,0.147571]
[1730646811267,0.001,67766.0,67765.0,0.147568]
[1730646811631,0.048,67769.0,67759.0,0.295163]
[1730646811831,0.048,67769.0,67768.0,0.147562]
[1730646812609,0.048,67769.0,67766.0,0.147565]
[1730646812977,0.0879697,67770.0,67767.0,0.295128]
[1730646813180,0.0879697,67770.0,67769.0,0.14756]
[1730646814507,0.0879697,67770.0,67769.0,0.15056]
[1730646815174,0.0104697,67770.0,67769.0,0.30135704]
[1730646816093,0.0104697,67770.0,67769.0,0.29835704]
[1730646816536,0.0104697,67770.0,67769.0,0.30135704]
[1730646816925,0.0104697,67770.0,67769.0,0.29800886]
[1730646817149,0.0104697,67770.0,67769.0,0.30300886]
[1730646817389,0.0104697,67770.0,67769.0,0.40300886]
[1730646817764,0.0104697,67770.0,67769.0,0.40800886]
[1730646817939,0.0104697,67770.0,67769.0,0.40300886]
[1730646818125,0.0104697,67770.0,67769.0,0.39800886]
[1730646818532,0.0104697,67770.0,67769.0,0.41200886]
[1730646819581,0.0104697,67770.0,67769.0,0.42600886]
[1730646819964,0.0104697,67770.0,67769.0,0.41200886]
[1730646820181,0.0104697,67770.0,67769.0,0.42600886]
[1730646820379,0.0104697,67770.0,67769.0,0.41200886]
[1730646820582,0.0104697,67770.0,67769.0,0.39800886]
[1730646820797,0.0104697,67770.0,67769.0,0.41200886]
[1730646820960,0.0104697,67770.0,67769.0,0.42600886]
[1730646822430,0.0104697,67770.0,67769.0,0.43100886]
[1730646822867,0.0104697,67770.0,67769.0,0.43300886]
[1730646823325,0.0104697,67770.0,67769.0,0.42400886]
[1730646823797,0.0104697,67770.0,67769.0,0.43800886]
[1730646823991,0.0104697,67770.0,67769.0,0.43180458]
[1730646825042,0.0104697,67770.0,67769.0,0.41780458]
[1730646825254,0.0104697,67770.0,67769.0,0.43180458]
[1730646825451,0.0104697,67770.0,67769.0,0.42980458]
[1730646825677,0.0104697,67770.0,67769.0,0.42200886]
[1730646825968,0.0104697,67770.0,67769.0,0.43800886]
[1730646826229,0.0104697,67770.0,67769.0,0.42200886]
[1730646826636,0.0104697,67770.0,67769.0,0.43600886]
[1730646826850,0.0104697,67770.0,67769.0,0.42600886]
[1730646829482,0.0104697,67770.0,67769.0,0.43100886]
[1730646829785,0.0104697,67770.0,67769.0,0.43300886]
[1730646830202,0.0104697,67770.0,67769.0,0.43100886]
[1730646830825,0.001634,67781.0,67780.0,0.01]
[1730646831000,0.001634,67781.0,67780.0,0.40828283]
[1730646831133,0.21986228,67791.0,67790.0,0.147514]
[1730646831342,0.21986228,67791.0,67790.0,0.29331104]
[1730646831539,0.0919097,67804.0,67790.0,0.29331104]
[1730646831540,0.22159028,67799.0,67796.0,0.147501]
[1730646831745,0.22159028,67799.0,67796.0,0.29329804]
[1730646832153,0.0919097,67804.0,67796.0,0.29329804]
[1730646832588,0.00116826,67797.0,67796.0,0.29329804]
[1730646832789,0.01233407,67797.0,67796.0,0.29329804]
[1730646833160,0.00733407,67797.0,67796.0,0.30629804]
[1730646833350,0.00733407,67797.0,67796.0,0.29329804]
[1730646833774,0.0919097,67804.0,67799.0,0.147494]
[1730646833906,0.0105097,67804.0,67799.0,0.29329104]
[1730646835559,0.0105097,67804.0,67799.0,0.30429104]
[1730646835997,0.0105097,67804.0,67799.0,0.31329104]
[1730646838278,0.0105097,67804.0,67799.0,0.16579704]
[1730646838477,0.0105097,67804.0,67799.0,0.31329104]
[1730646839003,0.0105097,67804.0,67799.0,0.16579704]
[1730646839211,0.147491,67801.0,67799.0,0.02]
[1730646839456,0.147491,67801.0,67799.0,0.011]
[1730646839689,0.294976,67803.0,67799.0,0.024]
[1730646839690,3.228892,67800.0,67799.0,0.024]
[1730646839951,3.228892,67800.0,67789.0,0.1]
[1730646840197,0.147495,67799.0,67792.0,0.22159028]
[1730646840457,3.0814,67800.0,67799.0,0.023]
[1730646840662,3.228892,67800.0,67799.0,0.023]
[1730646840866,3.228892,67800.0,67799.0,0.009]
[1730646841096,3.229709,67800.0,67799.0,0.009]
[1730646841515,3.082217,67800.0,67793.0,0.14579704]
[1730646842241,3.082217,67800.0,67794.0,0.295011]
[1730646842472,3.082217,67800.0,67795.0,0.29330004]
[1730646842759,0.147495,67799.0,67795.0,0.14579704]
[1730646842986,0.1475,67797.0,67795.0,0.14579704]
[1730646843235,3.377202,67800.0,67799.0,0.002]
[1730646843480,3.524694,67800.0,67799.0,0.002]
[1730646843732,3.524694,67800.0,67799.0,0.006]
[1730646844240,3.524694,67800.0,67799.0,0.002]
[1730646844676,0.147496,67799.0,67795.0,0.004]
[1730646844898,0.147494,67799.0,67791.0,0.147512]
[1730646845169,0.1586675,67798.0,67795.0,0.002]
[1730646845415,3.377202,67800.0,67792.0,0.14579704]
[1730646845416,0.0061705,67797.0,67792.0,0.14579704]
[1730646845638,0.147495,67799.0,67792.0,0.14579704]
[1730646846301,0.147495,67799.0,67778.0,0.295079]
[1730646846302,0.28343049,67799.0,67778.0,0.295079]
[1730646846505,0.28343049,67799.0,67775.0,0.22159028]
[1730646846506,0.147507,67794.0,67791.0,0.22159028]
[1730646846708,0.295002,67796.0,67780.0,0.147536]
[1730646847011,0.0455,67798.0,67795.0,0.002]
[1730646847140,0.147501,67796.0,67795.0,0.002]
[1730646847347,0.01,67795.0,67783.0,0.22159028]
[1730646847553,0.270527,67784.0,67783.0,0.22159028]
[1730646847981,0.295059,67783.0,67775.0,0.22159028]
[1730646848301,0.147544,67776.0,67775.0,0.22159028]
[1730646848511,0.147557,67771.0,67766.0,0.22159028]
[1730646848715,0.225058,67770.0,67767.0,0.14579704]
[1730646848987,0.0775,67770.0,67769.0,0.14756]
[1730646849196,0.0775,67770.0,67767.0,0.14579704]
[1730646849433,0.0775,67770.0,67754.0,0.002]
[1730646849434,0.147569,67765.0,67758.0,0.147583]
[1730646849666,0.0455,67767.0,67764.0,0.22159028]
[1730646849894,0.0455,67767.0,67761.0,0.147575]
[1730646850136,0.147576,67762.0,67754.0,0.147591]
[1730646850413,0.147586,67757.0,67754.0,0.14579704]
[1730646850637,0.295157,67761.0,67754.0,0.14579704]
[1730646850886,0.147584,67758.0,67754.0,0.14579704]
[1730646851110,0.147582,67759.0,67754.0,0.14579704]
[1730646851901,0.295159,67760.0,67754.0,0.14579704]
[1730646852128,0.14759,67755.0,67754.0,0.003]
[1730646852383,0.0775,67759.0,67754.0,0.006]
[1730646852384,0.147589,67756.0,67754.0,0.006]
[1730646852654,0.147589,67756.0,67754.0,0.003]
[1730646852655,0.14759,67755.0,67754.0,0.003]
[1730646853382,0.147609,67747.0,67740.0,0.147623]
[1730646853643,0.19309,67755.0,67754.0,0.005]
[1730646853877,0.0775,67759.0,67754.0,0.005]
[1730646853878,0.0775,67759.0,67754.0,0.15079704]
[1730646854127,0.22159028,67757.0,67755.0,0.14579704]
[1730646854350,0.372664,67759.0,67755.0,0.14579704]